[Event "Romanian Championship 2024"]
[Site "Eforie Nord"]
[Date "2024.03.01"]
[Round "8.1"]
[White "Parligras, Mircea-Emilian"]
[Black "Ognean, Mihnea-Ionut"]
[Result "1-0"]
[ECO "E51"]
[WhiteElo "2539"]
[BlackElo "2382"]
[Annotator "TA"]
[PlyCount "99"]
[EventDate "2024.02.24"]
[EventType "swiss"]
[EventCountry "ROU"]
[SourceTitle "playchess.com"]
[Source "ChessBase"]
[SourceQuality "1"]
[TimeControl "40/5400+30:900+30"]

{[%evp 22,99,70,76,102,81,94,41,63,40,67,44,120,74,64,74,95,98,105,95,158,175,163,156,149,186,173,136,218,225,233,177,217,216,275,274,278,231,237,244,233,238,390,86,179,151,171,164,219,224,278,272,813,749,837,770,837,1101,1108,1090,1289,442,442,442,442,442,442,442,607,582,611,442,757,668,668,668,954,954,865,792]} 1. d4 {[%emt 0:00:04]} Nf6 {[%emt 0:00:30]} 2. c4 {[%emt 0:00:08]} e6 {[%emt 0:00:05]} 3. Nc3 {[%emt 0:00:15]} Bb4 {[%emt 0:00:18]} 4. e3 {[%emt 0:00:08]} O-O {[%emt 0:00:51]} 5. Bd2 {[%emt 0:00:14]} d5 {[%emt 0:02:38]} 6. Nf3 {[%emt 0:00:11]} b6 {[%emt 0:03:07]} 7. cxd5 {[%emt 0:00:19]} exd5 {[%emt 0:00:43]} 8. Bd3 {[%emt 0:00:18] E51: Nimzo-Indian: Rubinstein: 4...0-0 5 Nf3 d5.} Re8 {[%emt 0:03:01]} 9. Ne5 {[%emt 0:06:06]} Bb7 {[%emt 0:08:22]} 10. O-O {[%emt 0:00:31]} Bd6 {[%emt 0:01:40]} 11. f4 {[%emt 0:01:57]} c5 {[%emt 0:00:05]} 12. Be1 {[%emt 0:08:31]} Nbd7 {[%emt 0:29:15]} 13. Bh4 {[%emt 0:01:33]} Be7 {[%emt 0:01:27]} 14. Qf3 {[%emt 0:11:51]} (14. Bb5 $16) 14... a6 $14 {[%emt 0:01:28]} 15. a4 $146 {[%emt 0:15:06]} ({Predecessor:} 15. Qh3 Nf8 16. Rad1 cxd4 17. exd4 Ne4 18. Bxe7 Qxe7 19. Nxe4 dxe4 20. Bc4 Ne6 21. f5 {1-0 Zakhartsov,V (2499)-Shoboev,D (2192) Malaya Zemlya Blitz op 2021 (7)}) 15... Nf8 {[%emt 0:04:04]} 16. Rad1 {[%emt 0:00:37]} Qd6 {[%emt 0:08:01]} (16... cxd4 $14 17. exd4 Rc8) 17. Bb1 {[%emt 0:04:00]} (17. Bxf6 $142 Bxf6 18. Bc4) 17... Rad8 {[%emt 0:05:56]} 18. Ba2 {[%emt 0:05:52]} Ng6 {[%emt 0:06:43]} 19. Bg3 $1 {[%emt 0:08:23]} cxd4 {[%emt 0:04:35]} 20. exd4 {[%emt 0:00:16]} Nf8 {[%emt 0:01:30]} (20... Qb4 $142) 21. f5 $16 {[%emt 0:04:21]} Qb4 {[%emt 0:00:08] [#]} 22. Be1 $1 {[%emt 0:03:38]} Qd6 {[%emt 0:02:57] [#]} 23. g4 $1 {[%emt 0:02:32]} h6 {[%emt 0:03:34]} 24. h4 {[%emt 0:00:27]} N8h7 {[%emt 0:00:47]} (24... N8d7 $16) 25. Qg2 $18 {[%emt 0:03:23]} Nd7 {[%emt 0:02:57]} 26. Nf3 {[%emt 0:08:09]} Nhf6 {[%emt 0:03:13]} 27. g5 {[%emt 0:00:26]} Ne4 {[%emt 0:02:01]} 28. f6 {[%emt 0:06:41]} Ndxf6 {[%emt 0:00:04]} 29. gxf6 {[%emt 0:00:15]} Bxf6 {[%emt 0:00:01]} 30. Ne5 {[%emt 0:04:46]} Bxe5 {[%emt 0:03:52]} 31. Nxe4 {[%emt 0:01:18]} dxe4 $2 {[%emt 0:01:06]} (31... Bh2+ {was necessary.} 32. Qxh2 Rxe4 33. Qxd6 Rxd6) 32. Rxf7 $2 {[%emt 0:01:44]} (32. dxe5 $18 Qc5+ (32... Qxd1 $2 33. Rxf7 Qxe1+ 34. Rf1+ Bd5 35. Bxd5+ Rxd5 36. Rxe1 $18) 33. Qf2 Qxf2+ (33... Rxd1 $2 34. Bxf7+ Kh7 35. Qxc5 $18) 34. Bxf2 Rxd1 35. Rxd1) 32... Bxd4+ {[%emt 0:00:24]} (32... Bd5 $16 {was called for.} 33. dxe5 Qc5+ 34. Kh2 (34. Bf2 Bxf7 35. Bxf7+ Kxf7 $15) 34... Bxf7 (34... Kxf7 $2 35. b4 $18)) 33. Kh1 $18 {[%emt 0:01:36]} Kh8 {[%emt 0:00:51]} 34. Rxb7 {[%emt 0:00:55]} Qe5 {[%emt 0:00:07]} (34... Qc6 $142 35. Rf7 Bf6 36. Rxd8 Rxd8) 35. Bg3 $18 {[%emt 0:00:28]} Qc5 {[%emt 0:00:45]} 36. Rc7 {[%emt 0:00:26]} Qb4 $2 {[%emt 0:00:41]} (36... Qf5 37. Bf7 Rf8) 37. Rc4 $18 {[%emt 0:00:21]} Qxb2 {[%emt 0:00:06]} 38. Rcxd4 {[%emt 0:00:46]} Rxd4 {[%emt 0:00:38]} 39. Qxb2 {[%emt 0:00:05]} Rxd1+ {[%emt 0:00:02]} 40. Kg2 {[%emt 0:00:00]} e3 {[%emt 0:00:00]} 41. Kf3 {[%emt 0:08:26]} (41. Qe2 Rd2 42. Bc4 Rxe2+ 43. Bxe2 Re4 44. Bxa6 Rxa4 $17) (41. Qxb6 $142 e2 42. Bf7 (42. Qxa6 Rd2 $16)) 41... e2 {[%emt 0:02:23]} 42. Bc4 {[%emt 0:00:06]} (42. Qxb6 $2 {too greedy.} Rd3+ (42... e1=R $2 43. Bxe1 Rdxe1 44. Qxa6 $18) 43. Kf4 Rxg3 $19 (43... e1=R $2 {is the wrong capture.} 44. Bxe1 Ra3 45. Bc4 $18)) 42... e1=Q {[%emt 0:03:47]} 43. Bxe1 {[%emt 0:00:05]} Rdxe1 {[%emt 0:00:04]} 44. Qxb6 {[%emt 0:00:44]} (44. Bxa6 Rf8+ 45. Kg2 Re4 $18) 44... Rf8+ {[%emt 0:00:43]} 45. Kg3 {[%emt 0:01:07]} a5 {[%emt 0:05:10]} 46. Qc5 {[%emt 0:03:01]} Ree8 {[%emt 0:02:01]} (46... Rfe8 $142 47. Qf5 (47. Qxa5 R1e3+ 48. Kg2 R3e4 $18) 47... R1e5) 47. Qxa5 {[%emt 0:00:41]} Re3+ {[%emt 0:00:24]} 48. Kg2 {[%emt 0:00:07]} Re4 {[%emt 0:00:23]} 49. Qc5 {[%emt 0:00:15]} Rd8 {[%emt 0:01:44]} 50. Kg3 {[%emt 0:01:24]} 1-0

[Event "Romanian Championship 2024"]
[Site "Eforie Nord"]
[Date "2024.03.01"]
[Round "8.2"]
[White "Lupulescu, Constantin"]
[Black "Cnejev, Vladimir-Alexandru"]
[Result "1-0"]
[ECO "D35"]
[WhiteElo "2589"]
[BlackElo "2311"]
[Annotator "TA"]
[PlyCount "93"]
[EventDate "2024.02.24"]
[EventType "swiss"]
[EventCountry "ROU"]
[SourceTitle "playchess.com"]
[Source "ChessBase"]
[SourceQuality "1"]
[TimeControl "40/5400+30:900+30"]

{[%evp 15,93,6,23,16,19,8,15,0,0,9,17,5,14,-15,-6,-11,0,-6,21,14,27,26,45,28,37,29,39,31,64,67,92,55,88,92,206,199,251,269,260,245,1104,497,462,373,1262,1252,1182,1052,1064,1016,1043,1046,1008,721,683,717,668,402,402,415,419,419,437,430,422,422,419,398,489,462,477,439,710,704,775,762,1119,1198,4133,2615]} 1. d4 {[%emt 0:00:01]} d5 {[%emt 0:00:08]} 2. c4 {[%emt 0:00:04]} e6 {[%emt 0:00:05]} 3. Nc3 {[%emt 0:00:02]} Nf6 {[%emt 0:00:07]} 4. cxd5 {[%emt 0:00:03]} exd5 {[%emt 0:00:06]} 5. Bg5 {[%emt 0:00:02]} c6 {[%emt 0:00:10]} 6. e3 {[%emt 0:00:12]} h6 {[%emt 0:00:10]} 7. Bh4 {[%emt 0:00:05]} Be7 {[%emt 0:00:06]} 8. Bd3 {[%emt 0:00:21]} O-O {[%emt 0:00:12]} 9. Nge2 {[%emt 0:00:09]} Re8 {[%emt 0:00:22]} 10. O-O {[%emt 0:00:32]} Nbd7 {[%emt 0:01:18]} 11. a4 {[%emt 0:00:53] The position is equal.} a5 {[%emt 0:00:16]} 12. f3 {[%emt 0:00:39]} Nb8 {[%emt 0:04:40][%cal Bd7b8,Bb8a6,Ba6b4][%mdl 32]} 13. Rc1 {[%emt 0:04:44]} Na6 {[%emt 0:00:44]} 14. Bf2 {[%emt 0:00:29]} Nb4 {[%emt 0:00:58]} 15. Bb1 {[%emt 0:00:05]} b6 {[%emt 0:02:55]} 16. Qd2 {[%emt 0:04:19]} c5 {[%emt 0:08:01]} 17. Nb5 {[%emt 0:04:19]} Ba6 {[%emt 0:06:31]} 18. Nec3 {[%emt 0:02:05]} Qd7 {[%emt 0:06:02]} 19. Rfe1 {[%emt 0:08:03]} Rac8 {[%emt 1:07:09]} 20. g4 {[%emt 0:20:38]} g6 21. Bg3 {[%emt 0:03:23]} Nh7 22. h4 {[%emt 0:50:22]} Rc6 {[%emt 0:01:30] Black is now going downhill.} 23. Kg2 {[%emt 0:00:30]} Nf8 {[%emt 0:00:30]} 24. Rcd1 {[%emt 0:00:00] Hoping for e4.} Rd8 {[#]} (24... Bf6 $16 {was worth a try.}) 25. e4 $1 $18 cxd4 {[%emt 0:00:00]} (25... dxe4 $142 26. Bxe4 (26. Nxe4 Bxb5 27. axb5 Re6 $14) (26. Rxe4 f5 $16) 26... Bxb5) 26. Nxd4 {[%emt 0:00:00]} dxe4 {[%emt 0:00:00]} 27. Nxe4 {[%emt 0:00:00][%cal Od2h6]} f5 $2 {[%emt 0:00:43]} (27... Rc4 $2 28. Qxh6 Nh7 (28... Rxd4 $2 29. Be5 $18) 29. Be5 $18 (29. Nf5 Bf8 $18)) (27... Qxd4 28. Qxd4 Rxd4) 28. Nxc6 {[%emt 0:00:00]} (28. Qxh6 $142 fxe4 29. Nxc6 Qxc6 30. Be5 (30. Bxe4 Qf6 $18) (30. fxe4 Nc2 $17)) 28... Qxc6 {[%emt 0:00:01]} 29. Qxh6 {[%emt 0:00:00][%cal Og3e5] Threatening mate with Be5!} fxe4 $2 {[%emt 0:01:19]} (29... Rxd1 30. Be5 (30. Rxd1 fxe4 31. Bxe4 Qf6 $18) 30... Kf7 31. Rxd1 (31. Qg7+ Ke8 $18) 31... fxe4) 30. Be5 {[%emt 0:00:00][%csl Ge5][%cal Rh6g7]} (30. Bxe4 Qf6 31. Rxd8 Bxd8 $18) (30. fxe4 Nc2 (30... Qxa4 $2 31. Rxd8 Bxd8 32. Bd6 $18) 31. Ba2+ Bc4 $17) 30... Kf7 {[%emt 0:00:55]} 31. Bxe4 {[%emt 0:00:00]} Rxd1 {[%emt 0:00:30]} 32. Qg7+ {[%emt 0:00:00]} Ke6 {[%emt 0:00:01]} 33. Rxd1 {[%emt 0:00:20]} Qc4 {[%emt 0:00:59]} 34. Re1 {[%emt 0:01:58]} (34. Bxg6 Qe2+ (34... Bxh4 35. Bf5#) 35. Kh3 Qxf3+ (35... Qxd1 36. Bf5+ Kd5 37. Be4+ Ke6 38. Bf5+ Kd5 39. Be4+ Ke6 40. Bf5+ $11) 36. Bg3 Bf1+ (36... Qxd1 37. Qf7+ Kd7 38. Qe8+ Ke6 39. Qf7+ Kd7 40. Qe8+ Ke6 41. Qf7+ $11) 37. Rxf1 Qxf1+ 38. Kh2 Nxg6 39. Qxg6+ Qf6 40. Qe4+ Kd7 $17) 34... Nc2 {[%emt 0:00:29]} 35. Bxc2 {[%emt 0:00:31]} Qxc2+ {[%emt 0:00:01]} 36. Kh3 {[%emt 0:00:10] And now Bf6+ would win.} Bf1+ {[%emt 0:00:48]} 37. Rxf1 {[%emt 0:00:03]} Qe2 {[%emt 0:00:06] Against Re1} 38. Rc1 {[%emt 0:00:57][%cal Bf1c1,Bc1c6,Bc6b6,Bb6b5,Bb5a5,Ba5a8,Ba8e8][%mdl 32]} Qxe5 {[%emt 0:00:48]} 39. Rc6+ {[%emt 0:00:27]} Kd5 {[%emt 0:00:09]} 40. Qxe5+ {[%emt 0:00:00]} Kxe5 {[%emt 0:00:00]} 41. Rxb6 {[%emt 0:00:23]} Ne6 {[%emt 0:07:54]} 42. Rb5+ {[%emt 0:02:36] White is clearly winning.} Kf4 {[%emt 0:00:11]} 43. Kg2 {[%emt 0:01:15] Black must now prevent h5.} ({Resist} 43. Rxa5 Kxf3 44. h5 Bd6 $18) 43... Nd4 {[%emt 0:02:02]} (43... Bxh4 $142 44. Rxa5 Bg5) 44. Rxa5 {[%emt 0:01:19]} Bxh4 {[%emt 0:03:53]} 45. Ra8 {[%emt 0:02:21] Strongly threatening a5.} Be7 {[%emt 0:03:01]} 46. Re8 {[%emt 0:03:48]} Nc6 {[%emt 0:00:07] [#]} 47. b4 $1 {[%emt 0:00:17] Weighted Error Value: White=0.50/Black=0.20 (precise) .  Mistake:       	White=1     	Black=5      Inaccurate:     	White=2     	Black=3      OK:         	White=13    	Black=10     Best:        	White=3     	Black=1      Strong:       	White=1     	---} 1-0

[Event "Romanian Championship 2024"]
[Site "Eforie Nord"]
[Date "2024.03.01"]
[Round "8.3"]
[White "Nevednichy, Vladislav"]
[Black "Gavrilescu, David"]
[Result "1-0"]
[ECO "B51"]
[WhiteElo "2451"]
[BlackElo "2523"]
[Annotator "TA"]
[PlyCount "125"]
[EventDate "2024.02.24"]
[EventType "swiss"]
[EventCountry "ROU"]
[SourceTitle "playchess.com"]
[Source "ChessBase"]
[SourceQuality "1"]
[TimeControl "40/5400+30:900+30"]

{[%evp 53,125,71,68,64,162,153,158,162,160,150,154,151,199,199,339,183,268,253,263,178,204,211,216,218,218,218,210,199,214,208,212,202,252,247,242,214,206,228,258,243,286,296,297,250,243,247,302,248,381,258,377,337,442,423,432,425,552,553,579,629,1401,1341,1872,1537,3388,6702,29984,29976,29976,29977,29977,29978,29982,29983]} 1. e4 {[%emt 0:00:03]} c5 {[%emt 0:00:23]} 2. Nf3 {[%emt 0:00:06]} d6 {[%emt 0:00:24]} 3. Bb5+ {[%emt 0:01:02]} Nd7 {[%emt 0:00:28]} 4. a4 {[%emt 0:00:22]} Ngf6 {[%emt 0:00:35]} 5. Nc3 {[%emt 0:00:06]} g6 {[%emt 0:00:22]} 6. O-O {[%emt 0:00:04] B51: Sicilian: Moscow Variation (3 Bb5+) without 3...Bd7.} Bg7 {[%emt 0:00:43]} 7. d4 {[%emt 0:00:56]} cxd4 {[%emt 0:00:44]} 8. Nxd4 {[%emt 0:00:04]} a6 {[%emt 0:00:29]} 9. Be2 {[%emt 0:00:46]} b6 {[%emt 0:00:35]} 10. Be3 {[%emt 0:11:07]} Bb7 {[%emt 0:01:46]} 11. f3 {[%emt 0:00:05]} O-O {[%emt 0:03:21]} 12. Qd2 {[%emt 0:00:39]} Qc7 {[%emt 0:15:32]} 13. Rfd1 {[%emt 0:04:43]} Rac8 $146 {[%emt 0:12:33]} ({Predecessor:} 13... Rfd8 14. Bf1 Ne5 15. Qe2 Rac8 16. Qf2 Nfd7 17. Nb3 Nc4 18. Bxc4 Qxc4 19. Bxb6 Nxb6 20. Qxb6 {0-1 Bras,H (1621)-Sperat Czar,N (2055) Leca da Palmeira 2nd 2023 (2)}) 14. Qe1 {[%emt 0:13:24]} e6 {[%emt 0:09:54]} 15. a5 {[%emt 0:15:24]} bxa5 {[%emt 0:15:14]} 16. Nb3 {[%emt 0:49:39]} Rb8 {[%emt 0:06:26]} 17. Nxa5 {[%emt 0:00:00]} Ba8 {[%emt 0:00:05]} 18. Qd2 {[%emt 0:00:00]} d5 {[%emt 0:02:33]} 19. exd5 {[%emt 0:00:00]} exd5 {[%emt 0:02:25]} 20. Nb3 {[%emt 0:00:00]} Ne5 {[%emt 0:02:37]} 21. Rxa6 {[%emt 0:00:00]} Nc4 {[%emt 0:01:39]} 22. Bxc4 {[%emt 0:00:00]} dxc4 {[%emt 0:00:03]} 23. Nd4 {[%emt 0:00:00]} Rbd8 {[%emt 0:05:32]} 24. Ndb5 {[%emt 0:00:00]} Qe7 {[%emt 0:08:07]} 25. Rd6 {[%emt 0:00:00]} Rxd6 {[%emt 0:00:09]} 26. Nxd6 {[%emt 0:00:00]} Nd5 {[%emt 0:01:43]} 27. Nxd5 {[%emt 0:00:00]} Qxd6 {[%emt 0:00:14]} 28. c3 {[%emt 0:00:00]} h5 {[%emt 0:03:29]} (28... Bxd5 $1 $14 29. Qxd5 Qb8) 29. Nb6 $18 {[%emt 0:00:00]} Qe6 {[%emt 0:00:07]} 30. Bf2 {[%emt 0:00:00]} Bb7 {[%emt 0:06:19]} 31. Qe3 {[%emt 0:05:26]} Qf5 {[%emt 0:00:40]} 32. Nxc4 {[%emt 0:01:26]} Ba6 {[%emt 0:00:03]} (32... Qb5 $16 {keeps fighting.}) 33. Nb6 $18 {[%emt 0:00:28]} Bb5 {[%emt 0:01:09]} (33... Qc2 {was necessary.} 34. Qd2 Qxd2 35. Rxd2 Rb8) 34. Qe4 {[%emt 0:00:38]} (34. c4 $142 Re8 35. Qd3 Qxd3 36. Rxd3) 34... Qf6 {[%emt 0:00:28]} (34... Qxe4 $142 35. fxe4 Bc6) 35. Nd5 $18 {[%emt 0:00:33]} Qa6 {[%emt 0:00:18]} 36. Nc7 {[%emt 0:00:47]} Qa5 {[%emt 0:00:04]} 37. Nxb5 {[%emt 0:00:09]} Qxb5 {[%emt 0:00:01]} 38. Rd2 {[%emt 0:00:58]} Re8 {[%emt 0:00:21]} 39. Qd3 {[%emt 0:00:27]} Qa4 {[%emt 0:01:30]} 40. Qc2 {[%emt 0:00:00]} Qa2 {[%emt 0:00:00]} 41. Qd1 {[%emt 0:00:35]} Bf6 {[%emt 0:03:00]} 42. g3 {[%emt 0:00:36]} h4 {[%emt 0:01:31]} 43. Kg2 {[%emt 0:00:26]} Qc4 {[%emt 0:00:50]} 44. Rd3 {[%emt 0:01:35]} Rb8 {[%emt 0:00:45] [#]} 45. Qe2 $1 {[%emt 0:00:13]} Qb5 {[%emt 0:03:22]} (45... Rxb2 $2 46. Rd8+ (46. Qxb2 Qxd3 47. Bd4 Bxd4 $11) 46... Bxd8 47. Qxc4 $18) 46. Rd2 {[%emt 0:00:58]} ({Worse is} 46. gxh4 Qxb2 47. Qe3 Qc2 $11 (47... Bxh4 $2 48. Rd2 $18)) 46... Qh5 {[%emt 0:00:36]} 47. gxh4 {[%emt 0:01:24]} Bxh4 {[%emt 0:03:04]} 48. Bg3 {[%emt 0:01:57]} Bxg3 {[%emt 0:03:41]} 49. hxg3 {[%emt 0:00:06]} (49. Kxg3 Qg5+ 50. Kf2 Qf4 $16) 49... Qg5 {[%emt 0:00:14]} 50. c4 {[%emt 0:02:17]} Qf5 {[%emt 0:00:29]} (50... Kg7 $142 51. f4 Qf6) 51. Qe4 {[%emt 0:03:37]} Qa5 {[%emt 0:01:34]} (51... Qxe4 $142 52. fxe4 Rb4) 52. Qd4 $18 {[%emt 0:00:36]} Re8 {[%emt 0:01:00]} 53. Qf2 {[%emt 0:01:21]} Rc8 {[%emt 0:02:07]} 54. Rc2 {[%emt 0:00:22]} Qa4 {[%emt 0:00:04]} 55. c5 {[%emt 0:00:33]} Kg7 {[%emt 0:00:23]} 56. Qd2 {[%emt 0:00:21]} f6 {[%emt 0:01:04]} 57. c6 {[%emt 0:00:32]} Rd8 {[%emt 0:00:02]} 58. Qe2 {[%emt 0:00:18]} ({Stronger than} 58. Qxd8 Qxc2+ 59. Kh3 Qf5+ 60. Kh2 Qc2+ 61. Kh3 Qf5+ 62. Kg2 Qc2+ 63. Kh1 Qxc6 $11) 58... Re8 {[%emt 0:00:05]} 59. Qc4 {[%emt 0:01:34]} ({Not} 59. Qxe8 Qxc2+ 60. Kf1 Qc1+ 61. Ke2 Qc2+ 62. Ke3 Qc5+ 63. Kd2 Qd4+ 64. Ke1 Qb4+ 65. Kf1 Qc4+ 66. Qe2 Qxc6 $14) 59... Qa1 {[%emt 0:00:02]} 60. Re2 {[%emt 0:00:30]} Rxe2+ {[%emt 0:00:40]} 61. Qxe2 {[%emt 0:00:04]} Qc1 {[%emt 0:00:14]} 62. Qe7+ {[%emt 0:00:44]} Kh6 {[%emt 0:00:36]} 63. Qxf6 {[%emt 0:00:09]} 1-0

[Event "Romanian Championship 2024"]
[Site "Eforie Nord"]
[Date "2024.03.01"]
[Round "8.4"]
[White "Ghimpu, Samuel-Timotei"]
[Black "Manolache, Marius"]
[Result "1/2-1/2"]
[ECO "B48"]
[WhiteElo "2467"]
[BlackElo "2387"]
[Annotator "TA"]
[PlyCount "72"]
[EventDate "2024.02.24"]
[EventType "swiss"]
[EventCountry "ROU"]
[SourceTitle "playchess.com"]
[Source "ChessBase"]
[SourceQuality "1"]
[TimeControl "40/5400+30:900+30"]

{[%evp 12,72,31,21,46,19,29,39,41,47,68,71,77,86,83,82,80,75,88,79,97,78,81,95,88,95,94,98,101,18,24,42,188,179,166,160,238,251,260,298,259,300,312,279,250,172,281,206,237,0,0,0,0,0,0,0,0,0,0,0,0,0,0]} 1. e4 {[%emt 0:00:31]} c5 {[%emt 0:00:08]} 2. Nf3 {[%emt 0:01:16]} e6 {[%emt 0:00:06]} 3. d4 {[%emt 0:00:34]} cxd4 {[%emt 0:00:08]} 4. Nxd4 {[%emt 0:00:08]} Nc6 {[%emt 0:00:12]} 5. Nc3 {[%emt 0:00:30]} Qc7 {[%emt 0:00:05]} 6. Be3 {[%emt 0:00:10]} a6 {[%emt 0:00:06]} 7. a3 {[%emt 0:00:08]} d6 {[%emt 0:03:06]} 8. f4 {[%emt 0:01:39]} Be7 {[%emt 0:03:46]} 9. Bd3 {[%emt 0:05:30][%cal Bf1d3,Bd3e2,Be2f3][%mdl 32]} Nxd4 {[%emt 0:07:19] White is slightly better.} 10. Bxd4 {[%emt 0:00:55]} Bh4+ {[%emt 0:00:19]} 11. g3 {[%emt 0:01:27]} Bf6 {[%emt 0:02:03]} 12. Be2 {[%emt 0:02:26]} Bd7 {[%emt 0:01:50]} 13. Qd3 {[%emt 0:05:10]} Bc6 {[%emt 0:03:51]} 14. O-O-O {[%emt 0:03:18]} Rd8 {[%emt 0:01:12]} 15. Rhf1 {[%emt 0:14:28]} h5 {[%emt 0:06:43]} 16. Kb1 {[%emt 0:14:53]} Rd7 {[%emt 0:06:37]} 17. Bf3 {[%emt 0:08:58]} Bxd4 {[%emt 0:00:51]} 18. Qxd4 {[%emt 0:00:08]} Nf6 {[%emt 0:00:06]} 19. h3 {[%emt 0:00:32][%cal Bh2h3,Bh3g4,Bg4g5][%mdl 32] White is more active.} Qa5 {[%emt 0:07:17]} 20. g4 {[%emt 0:07:54]} (20. Qg1 $16) 20... hxg4 $11 {[%emt 0:01:16]} 21. hxg4 {[%emt 0:00:08]} e5 {[%emt 0:00:35] [#]} (21... Qc5 $14) 22. Qg1 $1 $36 {[%emt 0:07:41][%mdl 2048] Black is under strong pressure.} Qc5 {[%emt 0:06:44] [#]} 23. Qg2 {[%emt 0:01:08]} exf4 {[%emt 0:09:08]} (23... Rc7 $16 {keeps fighting.}) 24. g5 {[%emt 0:00:51]} Nh5 {[%emt 0:02:54]} 25. Rh1 {[%emt 0:06:07]} g6 {[%emt 0:00:04]} 26. Nd5 {[%emt 0:00:15]} Bxd5 {[%emt 0:02:38]} 27. Rxd5 {[%emt 0:00:08]} ({Weaker is} 27. exd5 Re7 $11) 27... Qe3 {[%emt 0:01:45]} 28. Rhd1 {[%emt 0:01:17][%cal Oe4e5]} Ng3 {[%emt 0:04:49] [#]} (28... Kf8 $142) 29. e5 $1 {[%emt 0:01:24][%mdl 512] Bg4 would now be deadly.} Nf5 {[%emt 0:02:40] Threatens to win with ...Nh4.} (29... Rd8 30. exd6) 30. Rxd6 $2 {[%emt 0:11:04]} (30. exd6 $18 Kf8 31. Bg4) 30... Nxd6 $11 {[%emt 0:01:29] The position is equal.} 31. exd6 {[%emt 0:00:02]} Qe5 {[%emt 0:01:11]} (31... O-O $5 32. Bg4 $8 Rdd8 $11) 32. Rd5 {[%emt 0:00:43]} Qe1+ {[%emt 0:06:52]} 33. Rd1 {[%emt 0:00:58]} Qe5 {[%emt 0:00:07]} 34. Rd5 {[%emt 0:00:43]} Qe1+ {[%emt 0:00:10]} 35. Rd1 {[%emt 0:02:50]} Qe5 {[%emt 0:04:22]} 36. Rd5 {[%emt 0:00:06]} Qe1+ {[%emt 0:16:01] Blacks defense is rewarded with a draw.   Weighted Error Value: White=0.29 (precise) /Black=0.18 (very precise) .  Missed win:     	White=1     	---        Mistake:       	White=1     	Black=3      Inaccurate:     	White=2     	---        OK:         	White=13    	Black=13     Best:        	White=3     	---        Strong:       	White=1     	---} 1/2-1/2